Cogmind - Beta 13 @@@ ROGUE MODE // 2024.04.18 @ 10:26:00 Player: Destreich Result: Destroyed by X-77 Beamer with Gatling Laser Performance ------------- Evolutions (7) 3500 Regions Visited (9) 1800 Robots Destroyed (42) 210 Value Destroyed (991) 991 Prototype IDs (7) 140 Alien Tech Used (0) 0 Bonus (0) 0 TOTAL SCORE: 6641 Bonus ------- None Cogmind --------- Core Integrity 0/1300 Matter 7/300 Energy 99/100 System Corruption 9% Temperature Cool (30) Movement Core (50) Location -3/Testing Parts ------- > --- POWER (2) -------- (None) > --- PROPULSION (8) --- (None) > --- UTILITY (8) ------ Hacking Suite > --- WEAPON (3) ------- (None) > --- INVENTORY (5) ---- Micro Fission Core Improved Antigrav System Nova Cannon Advanced Micro-nuke Launcher Powered Hammer Peak State ------------ > --- POWER ------------ Light Deuterium Engine Enhanced Fission Core > --- PROPULSION ------- Armored Wheel Improved Hover Unit Improved Hover Unit Improved Hover Unit Improved Airjet Antigrav System > --- UTILITY ---------- Advanced Cooling System Small Storage Unit Signal Interpreter Kinecellerator Weapon Cycler Hardened Light Armor Plating Layered Light Armor Plating Hacking Suite > --- WEAPON ----------- Hypervelocity Gauss Rifle Powered Hammer > --- INVENTORY -------- Light Ion Engine Micro Nuclear Core Micro Fission Core Improved Light Cannon Improved Light Cannon Improved Light Cannon Mini Grenade Launcher [Rating: 64] Favorites ----------- Power Light Ion Engine Engine Light Ion Engine Power Core Micro Nuclear Core Propulsion Improved Hover Unit Treads Light Treads Leg Aluminum Leg Wheel Armored Wheel Hover Unit Improved Hover Unit Flight Unit Field Propulsion Drive Utility Hardened Light Armor Plating Device Weapon Cycler Storage Small Storage Unit Processor Signal Interpreter Hackware Hacking Suite Protection Hardened Light Armor Plating Weapon Autogun Energy Gun EM Pulse Gun Ballistic Gun Autogun Ballistic Cannon Improved Light Cannon Launcher Mini Grenade Launcher Impact Weapon Powered Hammer Build | -11 -10 -9 -8 -7 -6 -5 -4 -3 -3 ------- Run | Yrd Mat Mat Mat Fac Fac Fac Fac Res Tes Slots Evolved 14 | . . 2 2 2 2 2 2 2 . Power 1 | . . . . 1 . . . . . Propulsion 6 | . . 2 . . 2 . 1 1 . Utility 6 | . . . 2 1 . 2 1 . . Weapon 1 | . . . . . . . . 1 . Parts Attached 68 | . 10 5 15 11 5 7 2 9 4 Power 10 | . 1 . . 3 1 1 . 3 1 Engine 6 | . 1 . . 3 1 . . 1 . Core 4 | . . . . . . 1 . 2 1 Reactor . | . . . . . . . . . . Propulsion 25 | . 4 5 4 2 2 2 . 4 2 Treads 10 | . 4 4 . . . . . 2 . Leg . | . . . . . . . . . . Wheel 3 | . . 1 . . . 1 . . 1 Hover 9 | . . . 4 2 2 1 . . . Flight 3 | . . . . . . . . 2 1 Utility 22 | . 3 . 7 5 2 3 1 . 1 Device 9 | . . . 3 1 2 2 1 . . Storage 2 | . 1 . 1 . . . . . . Processor 1 | . 1 . . . . . . . . Hackware 2 | . . . . . . 1 . . 1 Protection 8 | . 1 . 3 4 . . . . . Artifact . | . . . . . . . . . . Weapon 11 | . 2 . 4 1 . 1 1 2 . Energy Gun . | . . . . . . . . . . Energy Cannon . | . . . . . . . . . . Ballistic Gun 3 | . 2 . . . . 1 . . . Ballistic Cannon 4 | . . . 2 . . . . 2 . Launcher 2 | . . . 2 . . . . . . Special Weapon . | . . . . . . . . . . Impact Weapon 2 | . . . . 1 . . 1 . . Slashing Weapon . | . . . . . . . . . . Piercing Weapon . | . . . . . . . . . . Special Melee Weapon . | . . . . . . . . . . Unidentified Prototypes 5 | . . . . 1 . . . 2 2 Parts Lost 15 | . 1 1 . . 2 . . 7 4 Power 4 | . 1 . . . 1 . . 1 1 Propulsion 10 | . . 1 . . 1 . . 6 2 Utility 1 | . . . . . . . . . 1 Weapon . | . . . . . . . . . . Highest Loss Streak 4 | . 1 1 . . 1 . . 4 3 To Critical Strikes . | . . . . . . . . . . Average Slot Usage (%) 86 | . 97 99 93 92 84 95 94 48 14 Engine 11 | . 13 11 9 14 12 9 5 2 . Treads 15 | . 28 41 . . . . . 2 . Wheel 1 | . . 2 . . . 5 5 2 2 Hover 12 | . . . 35 30 26 27 26 10 . Device 2 | . . . 6 1 3 9 15 7 . Storage 8 | . 14 11 9 7 6 5 5 2 . Processor 4 | . . 11 9 7 6 5 5 2 . Protection 8 | . 12 . 6 14 13 11 10 4 . Ballistic Gun 12 | . 26 22 1 . . 3 5 2 . Ballistic Cannon 3 | . . . 16 8 6 5 3 1 . Impact Weapon 1 | . . . . 5 6 1 1 1 . Naked Turns 21 | . . . . . . . . 17 4 Heaviest Build 94 | 12 94 89 26 30 33 40 41 46 5 Greatest Support 80 | 20 40 80 28 30 39 41 41 41 7 Greatest Overweight (x) 7 | . 2 7 . 1 . . . 1 1 Average Overweight (x) . | . 1 1 . . . . . . . Largest Inventory Capacity 25 | . 25 25 25 8 8 8 8 8 5 Average Capacity 15 | . 21 25 16 8 8 8 8 6 5 Most Carried 25 | . 24 25 25 8 8 7 6 8 5 Average Carried 12 | . 15 24 13 7 6 6 6 4 4 Final Capacity 25 | 8 25 25 8 8 8 8 8 5 5 Final Carried 25 | 6 24 25 8 8 7 7 6 4 5 Class Distribution -------------------- 99% | Mutant Dominant Class ---------------- Mutant | -10/Materials Mutant | -9/Materials Mutant | -8/Materials Mutant | -7/Factory Mutant | -6/Factory Mutant | -5/Factory Mutant | -4/Factory Mutant | -3/Research Mutant | -3/Testing Resources | -11 -10 -9 -8 -7 -6 -5 -4 -3 -3 ----------- Run | Yrd Mat Mat Mat Fac Fac Fac Fac Res Tes Matter Collected 1245 | 162 269 461 3 18 329 . . 3 . Remotely . | . . . . . . . . . . Salvage Created 1737 | . 353 580 49 18 737 . . . . Parts 79 | . 36 30 3 . 10 . . . . Haulers Intercepted 2 | . . . . . 2 . . . . Recyclers Shooed . | . . . . . . . . . . Parts Field Recycled . | . . . . . . . . . . Retrieved Matter . | . . . . . . . . . . Parts Self-Destructed . | . . . . . . . . . . Prevented . | . . . . . . . . . . Kills | -11 -10 -9 -8 -7 -6 -5 -4 -3 -3 ------- Run | Yrd Mat Mat Mat Fac Fac Fac Fac Res Tes Combat Hostiles Destroyed 28 | . 14 13 1 . . . . . . Guns 27 | . 14 13 . . . . . . . Cannons 1 | . . . 1 . . . . . . Classes Destroyed 9 | . 3 2 . 1 3 . . . . Worker 6 | . . . . 1 5 . . . . Builder 1 | . . . . . 1 . . . . Hauler 2 | . . . . . 2 . . . . Recycler 4 | . . . . . 4 . . . . Watcher 1 | . 1 . . . . . . . . Swarmer 9 | . 9 . . . . . . . . Grunt 15 | . 5 10 . . . . . . . Brawler 1 | . . 1 . . . . . . . Sentry 3 | . . 2 1 . . . . . . Best Kill Streak 8 | . 8 7 1 1 6 . . . . Combat Bots Only 8 | . 8 7 1 . . . . . . Max Kills in Single Turn 5 | . 2 1 1 1 5 . . . . Gunslinging 1 | . 1 . . . . . . . . Exploded . | . . . . . . . . . . Melee . | . . . . . . . . . . Uniques/NPCs Destroyed . | . . . . . . . . . . Combat | -11 -10 -9 -8 -7 -6 -5 -4 -3 -3 -------- Run | Yrd Mat Mat Mat Fac Fac Fac Fac Res Tes Hostile Shots Fired 539 | . 53 52 4 25 4 4 . 263 134 Missed 234 | . 11 11 2 12 . 3 . 124 71 Damage Taken 5027 | . 377 509 28 102 362 20 . 2735 894 Core 1393 | . 41 43 . 6 . . . 798 505 Absorbed by Shields . | . . . . . . . . . . Regen/Repaired (Parts) 27 | . . . . . 27 . . . . Core Remaining (%) 96 | 100 83 89 100 99 100 100 100 . . Volleys Fired 82 | . 31 38 6 3 . 1 . 3 . Largest 3 | . 2 2 2 1 . 2 . 3 . Hottest 111 | . 46 46 78 39 . 72 . 111 . Shots Fired 164 | . 62 76 12 3 . 2 . 9 . Gun 142 | . 62 76 . . . 1 . 3 . Cannon 22 | . . . 12 3 . 1 . 6 . Launcher . | . . . . . . . . . . Special . | . . . . . . . . . . Kinetic 164 | . 62 76 12 3 . 2 . 9 . Thermal . | . . . . . . . . . . Explosive . | . . . . . . . . . . Electromagnetic . | . . . . . . . . . . Robot Hit Streak 14 | . 7 14 1 1 . 1 . 2 . Robot Miss Streak 4 | . 4 2 2 1 . 2 . 2 . Penetration Max 1 | . . . . . . . . 1 . Secondary Targets 7 | . 3 4 . . . . . . . Max Gunslinging Chain 1 | . 1 1 . . . . . . . Shots Hit Robots 127 | . 38 58 4 3 19 1 . 4 . Core Hits 49 | . 19 22 2 . 4 1 . 1 . Critical Kills 2 | . . 2 . . . . . . . Critical Parts Destroyed 5 | . 1 . . . 2 . . 2 . Critical Strikes 7 | . 1 2 . . 2 . . 2 . Destroy 5 | . 1 2 . . . . . 2 . Smash 2 | . . . . . 2 . . . . Melee Attacks 34 | . . . . 5 27 . 1 1 . Impact 34 | . . . . 5 27 . 1 1 . Slashing . | . . . . . . . . . . Piercing . | . . . . . . . . . . Sneak Attacks 10 | . . . . 1 9 . . . . Combat Hostiles . | . . . . . . . . . . Follow-up Attacks . | . . . . . . . . . . Damage Inflicted 3619 | . 556 869 83 165 1833 30 . 83 . Guns 1453 | . 556 869 . . . 7 . 21 . Cannons 148 | . . . 83 19 . 23 . 23 . Explosions 556 | . . . . . 556 . . . . Melee 1423 | . . . . 146 1277 . . . . Ramming 39 | . . . . . . . . 39 . Kinetic 1601 | . 556 869 83 19 . 30 . 44 . Thermal 556 | . . . . . 556 . . . . Explosive . | . . . . . . . . . . Electromagnetic . | . . . . . . . . . . Impact 1423 | . . . . 146 1277 . . . . Slashing . | . . . . . . . . . . Piercing . | . . . . . . . . . . Highest Corruption 9 | . . . . . . . . 9 9 Average Corruption 7 | . . . . . . . . 4 9 Corruption Purged . | . . . . . . . . . . Corruption Blocked . | . . . . . . . . . . Effects 10 | . . . . . . . . 5 5 Message Errors 5 | . . . . . . . . 3 2 Matter Fused 1 | . . . . . . . . . 1 Heat Flow Errors 2 | . . . . . . . . 2 . Energy Discharges 1 | . . . . . . . . . 1 Data Loss (minor) 1 | . . . . . . . . . 1 Overload Shots . | . . . . . . . . . . Overflow Damage 791 | . . . . 106 685 . . . . Projectiles . | . . . . . . . . . . Explosions 175 | . . . . . 175 . . . . Melee 616 | . . . . 106 510 . . . . Knockbacks 5 | . . . . . 4 1 . . . Impact 4 | . . . . . 4 . . . . Kinetic 1 | . . . . . . 1 . . . Secondary . | . . . . . . . . . . Self-Inflicted Damage 310 | . . . . . 293 . . 17 . Shots 4 | . . . . . 4 . . . . Rammed 10 | . . . . . . . . 10 . Targets Rammed 10 | . . . . . . . . 10 . Kicked . | . . . . . . . . . . Crushed . | . . . . . . . . . . Highest Temperature 183 | . 88 25 22 46 41 64 . 183 15 Average Temperature 23 | . 31 9 12 11 18 39 . 59 10 Received Heat Transfer 772 | . 72 255 27 39 . 9 . 133 237 Siege Activations . | . . . . . . . . . . Robots Corrupted . | . . . . . . . . . . Combat Hostiles . | . . . . . . . . . . Parts Fried 6 | . . . . . 6 . . . . Impact Corruptions 22 | . . . . 6 16 . . . . Robots Melted . | . . . . . . . . . . Combat Hostiles . | . . . . . . . . . . Parts Melted . | . . . . . . . . . . Heat Transferred 350 | . . . . . 350 . . . . Parts Sabotaged . | . . . . . . . . . . Parts Stolen . | . . . . . . . . . . Parts Stripped . | . . . . . . . . . . Power Chain Reactions . | . . . . . . . . . . Alert | -11 -10 -9 -8 -7 -6 -5 -4 -3 -3 ------- Run | Yrd Mat Mat Mat Fac Fac Fac Fac Res Tes Peak Influence 415 | . 270 283 121 290 415 233 146 281 257 Initial 203 | . . 12 60 54 55 203 114 76 155 Average 142 | . 99 146 74 124 249 214 130 154 190 Maximum Alert Level 2 | . 1 1 . 1 2 1 . 1 1 Low Security (%) 75 | . 87 88 100 80 38 . 100 63 57 Level 1 23 | . 12 11 . 19 55 100 . 36 42 Level 2 . | . . . . . 5 . . . . Level 3 . | . . . . . . . . . . Level 4 . | . . . . . . . . . . Level 5 . | . . . . . . . . . . High Security . | . . . . . . . . . . Max Security . | . . . . . . . . . . Squads Dispatched 12 | . 2 1 . 2 2 2 . 1 2 Investigation 4 | . 1 1 . . . 1 . 1 . Extermination 1 | . . . . . 1 . . . . Reinforcement 7 | . 1 . . 2 1 1 . . 2 Assault . | . . . . . . . . . . Garrison . | . . . . . . . . . . Intercept . | . . . . . . . . . . Searches Triggered . | . . . . . . . . . . Construction Impeded . | . . . . . . . . . . Haulers Reinforced 1 | . . . . . . 1 . . . Active Scanning Responses . | . . . . . . . . . . Cargo Convoy Interrupts . | . . . . . . . . . . Stealth | -11 -10 -9 -8 -7 -6 -5 -4 -3 -3 --------- Run | Yrd Mat Mat Mat Fac Fac Fac Fac Res Tes Distress Signals 5 | . . . . 1 1 1 . 2 . Communications Jammed . | . . . . . . . . . . Distress Signals . | . . . . . . . . . . Times Spotted 106 | . 17 13 4 12 10 6 1 28 15 Peak Tracking Total 13 | . 9 7 3 6 5 7 1 13 12 Tactical Retreats 12 | . . . . 6 1 . . 3 2 Traps | -11 -10 -9 -8 -7 -6 -5 -4 -3 -3 ------- Run | Yrd Mat Mat Mat Fac Fac Fac Fac Res Tes Traps Triggered 8 | . 1 1 . 4 . . . 2 . Indirectly . | . . . . . . . . . . Trap Hack Attempts . | . . . . . . . . . . Triggered . | . . . . . . . . . . Disarmed . | . . . . . . . . . . Reprogrammed . | . . . . . . . . . . Reused . | . . . . . . . . . . Traps Extracted . | . . . . . . . . . . Installed . | . . . . . . . . . . Triggered . | . . . . . . . . . . Machines | -11 -10 -9 -8 -7 -6 -5 -4 -3 -3 ---------- Run | Yrd Mat Mat Mat Fac Fac Fac Fac Res Tes Machines Disabled 11 | . 1 2 . . 8 . . . . Max in Single Turn 8 | . 1 1 . . 8 . . . . Machines Repaired . | . . . . . . . . . . Machines Dismantled . | . . . . . . . . . . Machines Sabotaged . | . . . . . . . . . . Overloaded Fab Kills . | . . . . . . . . . . Hacking | -11 -10 -9 -8 -7 -6 -5 -4 -3 -3 --------- Run | Yrd Mat Mat Mat Fac Fac Fac Fac Res Tes Machines Accessed 18 | . 2 1 . 4 4 1 1 2 3 Terminals 12 | . 2 . . 3 3 . 1 1 2 Fabricators 1 | . . . . . . 1 . . . Repair Stations 2 | . . . . 1 1 . . . . Recycling Units . | . . . . . . . . . . Scanalyzers 2 | . . 1 . . . . . . 1 Garrison Access 1 | . . . . . . . . 1 . Total Hacks 35 | . 4 1 . 8 9 2 2 3 6 Successful 14 | . 3 . . 2 4 2 . . 3 Failed 21 | . 1 1 . 6 5 . 2 3 3 Catastrophic 5 | . . 1 . 1 1 . . . 2 Database Lockouts . | . . . . . . . . . . Manual 16 | . 1 . . 6 5 . 2 1 1 Terminals 25 | . 4 . . 6 7 . 2 1 5 Fabricators 2 | . . . . . . 2 . . . Repair Stations 4 | . . . . 2 2 . . . . Recycling Units . | . . . . . . . . . . Scanalyzers 2 | . . 1 . . . . . . 1 Garrison Access 2 | . . . . . . . . 2 . Terminal Hacks 9 | . 3 . . 1 2 . . . 3 Record 3 | . . . . . 1 . . . 2 Part Schematic 2 | . . . . 1 1 . . . . Prototype ID Bank 1 | . 1 . . . . . . . . Alert Level 1 | . . . . . . . . . 1 Locate Traps 1 | . 1 . . . . . . . . Investigation Status 1 | . 1 . . . . . . . . Fabricator Hacks 2 | . . . . . . 2 . . . Load Schematic 1 | . . . . . . 1 . . . Build 1 | . . . . . . 1 . . . Repair Station Hacks 3 | . . . . 1 2 . . . . Scan Component 2 | . . . . 1 1 . . . . Repair 1 | . . . . . 1 . . . . Recycling Unit Hacks . | . . . . . . . . . . Scanalyzer . | . . . . . . . . . . Garrison Access Hacks . | . . . . . . . . . . Unauthorized Hacks . | . . . . . . . . . . Terminals . | . . . . . . . . . . Fabricators . | . . . . . . . . . . Repair Stations . | . . . . . . . . . . Recycling Units . | . . . . . . . . . . Scanalyzers . | . . . . . . . . . . Garrison Access . | . . . . . . . . . . Data Cores Recovered . | . . . . . . . . . . Used . | . . . . . . . . . . Hacking Detections 18 | . 2 1 . 4 4 1 1 2 3 Full Trace Events 2 | . . . . . . 1 . 1 . Feedback Events . | . . . . . . . . . . Feedback Blocked . | . . . . . . . . . . Robot Schematics Acquired . | . . . . . . . . . . Robots Built . | . . . . . . . . . . Authchips . | . . . . . . . . . . Time . | . . . . . . . . . . Total Robot Build Rating . | . . . . . . . . . . Part Schematics Acquired 2 | . . . . 1 1 . . . . Parts Built . | . . . . . . . . . . Authchips . | . . . . . . . . . . Time 95 | . . . . . . 95 . . . Total Part Build Rating . | . . . . . . . . . . Parts Repaired 1 | . . . . . 1 . . . . Time 10 | . . . . . 10 . . . . Parts Recycled . | . . . . . . . . . . Recycled Matter . | . . . . . . . . . . Retrieved Matter . | . . . . . . . . . . Retrieved Components . | . . . . . . . . . . Parts Scanalyzed . | . . . . . . . . . . Part Schematics Acquired . | . . . . . . . . . . Parts Damaged . | . . . . . . . . . . Bothacking | -11 -10 -9 -8 -7 -6 -5 -4 -3 -3 ------------ Run | Yrd Mat Mat Mat Fac Fac Fac Fac Res Tes Used RIF Installer . | . . . . . . . . . . Robots Hacked . | . . . . . . . . . . Non-combat . | . . . . . . . . . . Combat . | . . . . . . . . . . Robot Hacks Applied . | . . . . . . . . . . Relay Couplers Released . | . . . . . . . . . . Fabnet Peak Effective % . | . . . . . . . . . . Robots Rewired . | . . . . . . . . . . Allies Hacked . | . . . . . . . . . . Hacks Repelled . | . . . . . . . . . . Allies | -11 -10 -9 -8 -7 -6 -5 -4 -3 -3 -------- Run | Yrd Mat Mat Mat Fac Fac Fac Fac Res Tes Total Allies . | . . . . . . . . . . Largest Group . | . . . . . . . . . . Highest-Rated Group . | . . . . . . . . . . Highest-Rated Ally . | . . . . . . . . . . Total Orders . | . . . . . . . . . . Ally Attacks . | . . . . . . . . . . Total Damage . | . . . . . . . . . . Kills . | . . . . . . . . . . Allies Corrupted . | . . . . . . . . . . Allies Melted . | . . . . . . . . . . Intel | -11 -10 -9 -8 -7 -6 -5 -4 -3 -3 ------- Run | Yrd Mat Mat Mat Fac Fac Fac Fac Res Tes Robot Analysis Total . | . . . . . . . . . . Derelict Logs Recovered . | . . . . . . . . . . Drone Launches . | . . . . . . . . . . Drone Recoveries . | . . . . . . . . . . Exploration | -11 -10 -9 -8 -7 -6 -5 -4 -3 -3 ------------- Run | Yrd Mat Mat Mat Fac Fac Fac Fac Res Tes Turns Passed 2935 | . 848 526 159 521 351 87 42 257 144 Spaces Moved 2849 | 1 259 166 84 883 582 150 64 388 272 Core 130 | . . . . . . . . 57 73 Treads 417 | . 259 158 . . . . . . . Legs 1 | 1 . . . . . . . . . Wheels 8 | . . 8 . . . . . . . Hover 1956 | . . . 84 883 582 150 64 193 . Flight 337 | . . . . . . . . 138 199 Fastest Speed 35 | 120 160 195 48 45 40 47 47 35 45 Average Speed 81 | 120 270 237 48 53 44 47 47 56 48 Slowest Speed 320 | 120 320 240 48 112 45 50 47 117 100 Overloaded Moves . | . . . . . . . . . . Propulsion Burnouts . | . . . . . . . . . . Robots Hopped 2 | . . . . . . . . 2 . Cave-ins Triggered . | . . . . . . . . . . Exploration Rate (%) 19 | 1 43 21 15 30 16 8 2 16 39 Regions Visited 9 Branch Regions 1 Pre-discovered Areas . | . . . . . . . . . . Known Exits Taken 7 | . 1 1 1 1 1 1 1 . . Unknown Exits Taken 2 | 1 . . . . . . . 1 . Scrap Searched . | . . . . . . . . . . Spaces Dug 9 | . . . . 3 5 . 1 . . Terrain Destroyed 42 | . . . . 3 38 . 1 . . Melee 9 | . . . . 3 5 . 1 . . Projectile . | . . . . . . . . . . AOE 33 | . . . . . 33 . . . . Terrain Rammed . | . . . . . . . . . . Walls Destroyed . | . . . . . . . . . . Machines Disabled . | . . . . . . . . . . Actions | -11 -10 -9 -8 -7 -6 -5 -4 -3 -3 --------- Run | Yrd Mat Mat Mat Fac Fac Fac Fac Res Tes Total 3264 | . 358 240 195 915 625 162 73 414 282 Wait 132 | . 28 17 68 . 10 2 7 . . Move 2837 | . 258 165 83 882 581 149 63 384 272 Hop 2 | . . . . . . . . 2 . Pick Up 48 | . 23 8 3 7 1 2 . 1 3 Fast Attach 25 | . 3 2 . 7 2 1 . 5 5 Attach 23 | . 1 2 6 3 3 4 1 3 . Detach 4 | . . . 1 . 1 1 . 1 . Swap 21 | . 6 1 9 1 . 2 1 1 . Drop 47 | . 8 7 19 7 . . . 4 2 Fire 82 | . 31 38 6 3 . 1 . 3 . Melee 34 | . . . . 5 27 . 1 1 . Ram 9 | . . . . . . . . 9 . Kick . | . . . . . . . . . . Crush . | . . . . . . . . . . Escape Stasis . | . . . . . . . . . . Rewire . | . . . . . . . . . . Trap . | . . . . . . . . . . Miscellaneous . | . . . . . . . . . . Route ------- -11/Scrapyard -10/Materials -9/Materials -8/Materials -7/Factory (discovered 2 exits: *Fac / *Low) -6/Factory -5/Factory -4/Factory -3/Research -3/Testing (discovered 1 exit: [*Res]) History --------- Turn | Location | Event 1 | -11/Scrapyard | Discovered new exit (range 0) 1 | -11/Scrapyard | Entered Materials 309 | -10/Materials | Build established: Mutant 316 | -10/Materials | Destroyed 8 combat bots 800 | -10/Materials | Discovered new exit (range 9) 848 | -10/Materials | Identified exit to Materials 849 | -10/Materials | Entered another Materials area 849 | -9/Materials | Evolved 2 slots: Propulsion x2 984 | -9/Materials | Destroyed 7 combat bots 1247 | -9/Materials | Discovered new exit (range 13) 1372 | -9/Materials | Identified exit to Materials 1375 | -9/Materials | Entered another Materials area 1375 | -8/Materials | Evolved 2 slots: Utility x2 1519 | -8/Materials | Discovered new exit (range 15) 1525 | -8/Materials | Identified exit to Factory 1534 | -8/Materials | Entered Factory 1534 | -7/Factory | Evolved 2 slots: Power x1, Utility x1 1921 | -7/Factory | Discovered new exit (range 4) 1922 | -7/Factory | Identified exit to Lower Caves 2050 | -7/Factory | Discovered new exit (range 10) 2054 | -7/Factory | Identified exit to Factory 2055 | -7/Factory | Entered another Factory area 2055 | -6/Factory | Evolved 2 slots: Propulsion x2 2355 | -6/Factory | Repaired Imp. Hover Unit 2402 | -6/Factory | Discovered new exit (range 9) 2406 | -6/Factory | Identified exit to Factory 2406 | -6/Factory | Entered another Factory area 2406 | -5/Factory | Evolved 2 slots: Utility x2 2490 | -5/Factory | Discovered new exit (range 6) 2492 | -5/Factory | Identified exit to Factory 2493 | -5/Factory | Entered another Factory area 2493 | -4/Factory | Evolved 2 slots: Propulsion x1, Utility x1 2516 | -4/Factory | Discovered new exit (range 11) 2535 | -4/Factory | Identified exit to Research 2535 | -4/Factory | Entered Research 2535 | -3/Research | Evolved 2 slots: Propulsion x1, Weapon x1 2594 | -3/Research | Spotted B-86 Titan 2660 | -3/Research | Released all parts (15) 2691 | -3/Research | Lost 4 parts (4n) 2784 | -3/Research | Core integrity fell below 50% 2789 | -3/Research | Discovered new exit (range 5) 2792 | -3/Research | Entered Testing 2841 | -3/Testing | Lost 3 parts (2n1u) 2844 | -3/Testing | Found Prototype Launcher 2874 | -3/Testing | Spotted Striker 2875 | -3/Testing | Spotted Striker 2910 | -3/Testing | Core integrity fell below 20% 2912 | -3/Testing | Discovered new exit (range 13) 2936 | -3/Testing | Destroyed by X-77 Beamer with Gatling Laser Last Messages --------------- 02901_ Field Propulsion Drive destroyed. 02901_ U-05 Engineer destroyed. 02901_ K-01 Serf destroyed. 02901_ Fusion Compressor destroyed. 02902_ K-01 Serf collects debris. 02909_ Slug penetrates A-15 Conveyor. 02911_ ALERT: Hostiles spotted, dispatching reinforcements to Terminal T001. 02912_ EXIT=FOUND 02912_ Penetrated by Slug. 02912_ A-15 Conveyor destroyed. 02914_ System corrupted: Matter fused (-8). 02914_ Slug penetrates Antiparticle Suffusor. 02916_ Slug penetrates Wall. 02916_ Penetrated by Slug. 02921_ Dropped Mni. Grenade Launcher. 02922_ Acquired Imp. Antigrav System. 02936_ Hdn. Centrium Wheel destroyed. 02936_ Slug penetrates Antiparticle Suffusor. 02936_ Penetrated by Slug. Map ----- +----------------------------------------------------+ | ?????????????????????????????????????????????????? | | ?????????????????###+####????????????????????????? | | ????????????????? #????????????????????????? | | ????????????????? < #????????????????????????? | | ????????????????? ?????????????????????????? | | ????????????????# ??????????????????????????? | | ????????????????# #???????????????????????????? | | ????????????????# #???????????????????????????? | | #############+### ####????????????????????????? | | #????????????????????????? | | = #????????????????????????? | | ]!] #????????????????????????? | | !%]! #???????????????????????????? | | #############+### #???????????????????????????? | | ####??????? #?# #???????????????????????????? | | #????? "#?# ###############?????????????? | | #???#" ""#?# """ #?????????????? | | = #???#"! "#?# "T" #?????????????? | | ####???##"""!!#?# x h #?????????????? | | #??????????#""#?# """"oYhg #?????????????? | | #??????????####?# """" x ######+#+#####?????????? | | #???????????????# """" x# /#?????????? | | #???????????????# """" + = #?????????? | | #???????????????+ # #?????????? | | #???????????????# ] # #?????????? | | #???????????????# @/ """ """ ""#?????????? | | #???????????????# ###### """ """ ""#?????????? | | #???????????????######????# """ """ ""#?????????? | | ??????????????????????????# T#?????????? | | ??????????????????????????#! """ """ ""#?????????? | | ??????????????????????????# """ """ ""#?????????? | | ??????????????????????????# """ ""? ""??????????? | | ??????????????????????????# ??????????????? | | ??????????????????????????########???????????????? | | ?????????????????????????????????????????????????? | | ?????????????????????????????????????????????????? | | ?????????????????????????????????????????????????? | | ?????????????????????????????????????????????????? | | ?????????????????????????????????????????????????? | | ?????????????????????????????????????????????????? | | ?????????????????????????????????????????????????? | | ?????????????????????????????????????????????????? | | ?????????????????????????????????????????????????? | | ?????????????????????????????????????????????????? | | ?????????????????????????????????????????????????? | | ?????????????????????????????????????????????????? | | ?????????????????????????????????????????????????? | | ?????????????????????????????????????????????????? | | ?????????????????????????????????????????????????? | | ?????????????????????????????????????????????????? | +----------------------------------------------------+ Best States ------------- Heat Dissipation 77 Energy Generation 25 Energy Capacity 190 Matter Stores 300 Matter Capacity 300 Sight Range 16 Terrain Scan Density 10 Additional Mass Support 6 Armor Coverage 300 Weapon Cycling 15 Evasion (%) 63 Recoil Reduction 4 Kinecelleration 30 Offensive Hacking 10 Item Schematics ----------------- Imp. Hover Unit | -7/Factory | Hacked Cmb. Airjet | -6/Factory | Hacked Robot Schematics ------------------ None Fabricated ------------ Nothing Alien Tech Used ----------------- None Achievements -------------- None Challenges ------------ None Game ------ Seed HeavyAlertReconfigurator Manual? 0 Play Time 00:58:27 Cumulative 9.7 hours Start 2024.04.17 @ 10:26:33 End 2024.04.18 @ 10:26:00 Sessions 3 Manual Loads 0 Difficulty Rogue Special Mode None Game No. 22 Rogue 20 Adventurer 2 Explorer 0 Win Type - Total 0 Types 0/0/0/0/0/0/0/0/0 Lore% 16 Gallery% 20 Achievement% 18 Wizard Run 0 Options --------- Layout 2 ASCII 0 Keyboard 0 Movement Vi Keybinds 0 Fullscreen 2 Font 32/Terminus Map View 50x44 Zoom Use 0% Tactical HUD 1 Map Filters NONE Filters NONE Steam 1 RUN: eed7df76-c7c7-4d14-afcb-b860d8dedad2